bitfinex-derivatives/quotes_ETHF0:USTF0_20240923
["timestamp","ask_amount","ask_price","bid_price","bid_amount"]
[1727101065018,3.7456,2669.9,2669.3,3.2078]
[1727101065218,0.37462,2669.5,2668.7,3.2078]
[1727101065416,0.2,2670.0,2668.7,3.2078]
[1727101065729,3.2078,2673.6,2671.2,3.2078]
[1727101066017,3.2078,2673.6,2669.2,0.372]
[1727101066018,0.37425,2672.1,2670.8,0.189]
[1727101066214,3.2078,2672.0,2671.3,3.2078]
[1727101066415,0.93557,2672.3,2671.3,3.2078]
[1727101066619,0.93557,2672.3,2670.1,0.189]
[1727101066620,0.37428,2671.9,2671.6,3.2078]
[1727101066811,3.2078,2672.6,2671.6,3.2078]
[1727101067012,0.9356,2672.2,2671.6,3.2078]
[1727101067210,1.0679,2673.1,2672.0,3.2078]
[1727101067422,0.37414,2672.9,2672.0,3.2078]
[1727101067622,1.0679,2673.1,2672.5,3.2078]
[1727101068130,1.0679,2673.1,2672.2,3.2078]
[1727101068616,1.0679,2673.1,2672.5,3.2078]
[1727101068819,1.0679,2673.1,2672.2,3.2078]
[1727101069119,0.01,2672.6,2672.5,3.2078]
[1727101069322,1.1079,2674.3,2672.5,3.2078]
[1727101069517,0.93502,2673.9,2672.7,3.2078]
[1727101069821,0.37413,2673.0,2672.7,3.2078]
[1727101070120,0.93502,2673.9,2672.7,3.2078]
[1727101070318,1.1079,2674.3,2673.2,3.2078]
[1727101070719,3.2078,2673.9,2673.2,3.2078]
[1727101071019,0.93511,2673.6,2672.8,3.2078]
[1727101071224,3.2078,2672.9,2671.9,3.2078]
[1727101071414,3.2078,2672.9,2670.5,0.19195941]
[1727101071415,0.93543,2672.7,2671.6,3.2078]
[1727101071614,0.9355,2672.5,2671.6,3.2078]
[1727101071920,3.2078,2671.8,2670.9,3.2078]
[1727101072119,3.2078,2671.8,2670.4,3.2078]
[1727101072120,0.37442,2671.0,2670.4,3.2078]
[1727101072325,3.2078,2671.6,2670.1,3.2078]
[1727101072523,0.37452,2670.3,2670.1,3.2078]
[1727101072714,0.37449,2670.4,2669.8,3.2078]
[1727101072918,0.37449,2670.4,2670.3,3.2078]
[1727101073219,0.37455,2670.0,2669.9,3.2078]
[1727101073421,3.2078,2670.9,2669.9,3.2078]
[1727101073422,3.2078,2671.3,2669.9,10.43239]
[1727101073625,0.37443,2670.9,2670.4,3.2078]
[1727101073817,0.93579,2671.7,2670.4,3.2078]
[1727101074017,0.93592,2671.3,2670.4,3.2078]
[1727101074219,3.2078,2671.5,2670.4,3.2078]
[1727101074418,0.37453,2670.2,2670.1,3.2078]
[1727101074613,0.37458,2669.8,2669.7,3.2078]
[1727101074915,0.93613,2670.7,2669.7,3.2078]
[1727101074916,3.2078,2670.7,2669.7,4.43239]
[1727101075121,2.99368,2670.9,2670.0,3.2078]
[1727101075321,0.37443,2670.8,2670.6,3.2078]
[1727101075524,0.37443,2670.8,2670.3,3.2078]
[1727101075720,0.37449,2670.4,2670.3,3.2078]
[1727101075916,0.37454,2670.1,2670.0,3.2078]
[1727101076122,5.2654,2670.9,2670.0,3.2078]
[1727101076322,0.37454,2670.1,2670.0,3.2078]
[1727101076827,10.12014,2670.1,2670.0,3.2078]
[1727101077426,0.37463,2669.4,2669.1,3.2078]
[1727101077618,0.37465,2669.3,2669.1,3.2078]
[1727101077821,0.37466,2669.2,2669.1,3.2078]
[1727101078221,10.12106,2669.2,2669.1,3.2078]
[1727101079215,0.93669,2669.1,2668.7,3.2078]
[1727101079419,0.37475,2668.6,2668.3,3.2078]
[1727101079620,0.37476,2668.5,2668.3,4.43239]
[1727101079821,0.93665,2669.2,2668.3,4.43239]
[1727101080020,1.0759,2669.5,2668.9,3.2078]
[1727101080224,0.93625,2670.4,2669.2,3.2078]
[1727101080225,3.2078,2670.4,2669.2,3.2078]
[1727101080424,3.2078,2670.7,2669.7,3.2078]
[1727101080632,0.93627,2670.3,2669.4,3.2078]
[1727101080832,3.2078,2669.9,2669.1,3.2078]
[1727101081128,0.3747,2668.9,2668.8,3.2078]
[1727101081434,0.37475,2668.6,2668.1,3.2078]
[1727101081628,0.37475,2668.6,2668.0,0.088]
[1727101081629,0.37476,2668.5,2668.4,3.2078]
[1727101082135,0.37475,2668.6,2668.4,3.2078]
[1727101082333,3.2078,2669.2,2668.4,3.2078]
[1727101082334,3.2078,2669.9,2668.4,3.2078]
[1727101082527,0.93657,2669.5,2668.4,3.2078]
[1727101082728,0.37473,2668.7,2668.4,3.2078]
[1727101082926,0.37476,2668.5,2668.4,3.2078]
[1727101083237,0.37483,2668.0,2667.9,3.2078]
[1727101083430,0.37483,2668.0,2667.2,4.62493]
[1727101083431,0.37485,2667.9,2667.5,3.2078]
[1727101083631,0.37485,2667.9,2667.8,3.2078]
[1727101083827,3.2078,2668.9,2667.8,3.2078]
[1727101084033,3.2078,2668.9,2667.3,3.7488]
[1727101084034,0.37475,2668.6,2668.4,3.2078]
[1727101084236,1.129,2669.0,2668.4,3.2078]
[1727101084436,0.37476,2668.5,2668.4,3.2078]
[1727101084825,3.2078,2670.1,2668.4,12.955]
[1727101085025,3.2078,2670.1,2669.5,3.2078]
[1727101085235,0.37455,2670.0,2669.6,3.2078]
[1727101085428,0.93644,2669.8,2668.8,3.2078]
[1727101085632,0.37466,2669.2,2669.1,3.2078]
[1727101086139,9.7464,2669.2,2668.8,3.2078]
[1727101086336,0.37467,2669.2,2669.1,3.2078]
[1727101086641,0.93669,2669.1,2668.7,3.2078]
[1727101086827,0.37471,2668.8,2668.7,3.2078]
[1727101087032,1.3115,2668.8,2668.7,3.2078]
[1727101087242,3.7472,2668.8,2668.3,3.2078]
[1727101087431,0.37474,2668.7,2668.3,3.2078]
[1727101087831,0.37474,2668.7,2668.6,3.2078]
[1727101088139,1.8724,2670.5,2668.6,3.2078]
[1727101088140,0.37472,2668.8,2668.6,3.2078]
[1727101088335,3.2078,2670.2,2668.6,3.2078]
[1727101088529,0.37468999,2669.0,2668.9,3.2078]
[1727101088734,0.93645,2669.8,2668.9,3.2078]
[1727101089037,0.93645,2669.8,2668.5,4.25]
[1727101089038,0.93644,2669.9,2669.4,3.2078]
[1727101089234,0.37464,2669.4,2669.1,3.2078]
[1727101089438,0.93641,2669.9,2669.2,3.2078]
[1727101089838,0.37458,2669.8,2669.3,0.37464]
[1727101090039,0.37458,2669.8,2668.8,0.93679]
[1727101090040,0.9362,2670.5,2669.6,3.2078]
[1727101090230,0.9362,2670.5,2669.1,4.25]
[1727101090231,0.9362,2670.5,2670.0,3.2078]
[1727101090453,0.93609,2670.8,2670.0,3.2078]
[1727101090454,0.37453,2670.1,2670.0,3.2078]
[1727101090643,6.9526,2670.7,2669.6,3.2078]
[1727101090843,0.37466,2669.2,2669.1,3.2078]
[1727101091035,0.93648,2669.7,2669.1,3.2078]
[1727101091036,4.14428,2669.7,2669.1,3.2078]
[1727101091237,0.93655,2669.5,2668.5,3.2078]
[1727101091549,3.2078,2669.4,2668.5,3.2078]
[1727101091741,0.37474,2668.6,2668.5,3.2078]
[1727101092240,3.2078,2669.5,2668.5,3.2078]
[1727101092439,0.37474,2668.6,2668.5,3.2078]
[1727101092851,0.93672,2669.0,2668.2,3.2078]
[1727101093141,0.37474,2668.7,2668.5,3.2078]
[1727101093347,3.2078,2669.2,2668.5,3.2078]
[1727101093551,0.37474,2668.6,2668.5,3.2078]
[1727101093733,0.37473,2668.7,2668.5,3.2078]
[1727101094139,1.1149,2669.6,2668.3,3.2078]
[1727101094140,0.37477,2668.4,2668.3,3.2078]
[1727101094345,0.93669,2669.1,2668.3,3.2078]
[1727101094640,0.37477,2668.4,2668.3,3.2078]
[1727101094838,0.93682,2668.8,2668.3,3.2078]
[1727101094839,0.37476,2668.5,2668.3,3.2078]
[1727101095039,0.93682,2668.8,2668.3,3.2078]
[1727101095339,0.37477,2668.4,2668.3,3.2078]
[1727101095851,4.12277,2668.4,2668.3,3.2078]
[1727101096239,0.37477,2668.4,2668.3,3.2078]
[1727101096634,4.12277,2668.4,2668.3,3.2078]
[1727101096841,0.37481,2668.1,2668.0,3.2078]
[1727101097045,0.37486,2667.8,2667.6,6.0378]
[1727101097442,2.83,2669.3,2667.6,6.0378]
[1727101097443,0.37487,2667.7,2667.6,6.0378]
[1727101097647,0.37487,2667.7,2667.6,3.2078]
[1727101098446,4.12367,2667.7,2667.6,3.2078]
[1727101098649,0.37487,2667.7,2667.6,3.2078]
[1727101099449,4.12367,2667.7,2667.6,3.2078]
[1727101099750,4.12367,2667.7,2666.7,1.47126598]
[1727101099751,0.37491,2667.4,2667.3,3.2078]
[1727101100254,0.37495,2667.1,2666.9,6.0378]
[1727101100446,0.93731,2667.4,2666.9,6.0378]
[1727101100752,1.0965,2668.4,2666.6,0.95042262]
[1727101100753,3.2078,2667.8,2666.6,3.2078]
[1727101100945,0.37497,2667.0,2666.9,3.2078]
[1727101101843,0.37497,2667.0,2666.9,6.0378]
[1727101102250,0.9372,2667.7,2666.9,6.0378]
[1727101102457,0.37492,2667.4,2667.2,3.2078]
[1727101102757,0.93712,2667.9,2667.2,3.2078]
[1727101102758,0.37492,2667.3,2667.2,3.2078]
[1727101103451,0.3749,2667.5,2667.2,7.33153]
[1727101103649,10.4822,2668.8,2667.3,2.83]
[1727101103650,0.93697,2668.3,2667.3,2.83]
[1727101103952,0.37488,2667.6,2667.5,3.2078]
[1727101104165,0.37494,2667.2,2667.1,3.2078]
[1727101104449,0.9372,2667.7,2667.1,3.58275]
[1727101104653,0.37494,2667.2,2667.1,3.2078]
[1727101105045,0.93727,2667.5,2667.1,3.2078]
[1727101105046,0.37493,2667.3,2667.1,3.2078]
[1727101105243,0.37494,2667.2,2667.1,3.2078]
[1727101106253,4.12454,2667.2,2667.1,3.2078]
[1727101106452,5.06189,2667.2,2667.1,3.2078]
[1727101106651,5.06189,2667.2,2666.8,3.2078]
[1727101106652,0.37496,2667.1,2666.8,3.2078]
[1727101106951,0.93725,2667.5,2666.8,3.2078]
[1727101107155,4.14505,2667.5,2666.8,3.2078]
[1727101107351,0.37494,2667.2,2667.1,3.2078]
[1727101107870,7.1343,2668.4,2667.3,0.93729]
[1727101107871,0.937,2668.2,2667.3,0.93729]
[1727101108051,1.0965,2668.4,2667.8,3.2078]
[1727101108052,0.37482,2668.1,2667.8,3.2078]
[1727101108244,0.37484,2668.0,2667.8,3.2078]
[1727101108851,0.37484,2667.9,2667.8,3.2078]
[1727101109047,1.0965,2668.4,2667.8,3.2078]
[1727101109352,1.0965,2668.4,2668.2,0.37479]
[1727101109554,0.37474,2668.7,2668.3,0.37478]
[1727101109755,0.37474,2668.7,2668.1,3.2078]
[1727101109756,3.2078,2669.9,2668.4,6.0378]
[1727101109958,1.87262,2670.2,2668.4,6.0378]
[1727101109959,0.37468,2669.1,2668.8,3.2078]
[1727101110252,0.93655,2669.5,2668.8,3.2078]
[1727101110456,0.93658,2669.4,2668.8,3.2078]
[1727101110655,0.93651,2669.6,2668.8,3.2078]
[1727101110854,0.37465,2669.3,2668.8,3.2078]
[1727101111049,0.37465,2669.3,2668.4,2.83]
[1727101111050,0.37465,2669.3,2669.1,3.2078]
[1727101111253,0.93651,2669.6,2669.1,3.2078]
[1727101111453,0.37466,2669.2,2669.1,3.2078]
[1727101111959,4.12107,2669.2,2668.8,3.2078]
[1727101112252,0.93663,2669.3,2668.8,3.2078]
[1727101112454,0.37468,2669.1,2668.8,3.2078]
[1727101112851,0.93658,2669.4,2668.8,3.2078]
[1727101113052,0.3747,2669.0,2668.8,3.2078]
[1727101113246,0.37466,2669.2,2668.8,3.2078]
[1727101113652,0.3747,2668.9,2668.8,3.2078]
[1727101113960,0.37469,2669.0,2668.8,3.2078]
[1727101114156,0.37467,2669.2,2668.8,3.2078]
[1727101114361,0.37469,2669.0,2668.8,3.2078]
[1727101114656,0.93655,2669.5,2668.8,3.2078]
[1727101114657,0.3747,2668.9,2668.8,3.2078]
[1727101114849,4.68295,2669.5,2668.4,3.2078]
[1727101114850,0.93672,2669.0,2668.4,3.2078]
[1727101115052,0.37476,2668.5,2668.4,3.2078]
[1727101115257,0.93676,2668.9,2668.4,3.2078]
[1727101115562,1.1019,2669.8,2667.9,0.37483]
[1727101115563,0.37479,2668.3,2667.9,0.37483]
[1727101115857,0.37479,2668.3,2668.2,3.2078]
[1727101116354,4.12279,2668.3,2668.2,3.2078]
[1727101116554,10.12279,2668.3,2667.9,3.2078]
[1727101116760,0.37483,2668.0,2667.9,3.2078]
[1727101117353,0.37487,2667.7,2667.6,3.2078]
[1727101117561,0.93704,2668.2,2667.3,3.2078]
[1727101117767,3.2078,2668.1,2667.3,3.2078]
[1727101117967,0.37488,2667.6,2667.3,3.58272]
[1727101118261,1.0891,2668.8,2667.3,3.2078]
[1727101118465,2.0259,2668.8,2667.8,3.58265]
[1727101118670,1.0891,2668.8,2667.8,3.2078]
[1727101118864,0.37484,2667.9,2667.8,3.2078]
[1727101119361,4.12284,2667.9,2667.8,3.2078]
[1727101119666,0.37484,2667.9,2667.8,3.2078]
[1727101119859,0.93683,2668.7,2667.8,3.58265]
[1727101120064,0.93686,2668.6,2667.9,0.37483]
[1727101120263,0.93683,2668.7,2667.8,3.2078]
[1727101120469,0.37481,2668.1,2667.8,3.58264]
[1727101120765,0.93691,2668.5,2667.8,3.58264]
[1727101121064,0.93686,2668.6,2667.8,3.2078]
[1727101121258,1.0891,2668.8,2668.5,3.2078]
[1727101121259,2.0259,2668.8,2668.5,3.2078]
[1727101121769,4.14422,2669.9,2669.1,0.37466]
[1727101122074,1.87254,2670.3,2669.2,0.37465]
[1727101122075,0.37463,2669.5,2669.2,0.37465]
[1727101122370,0.93637,2670.0,2669.0,3.2078]
[1727101122759,0.37456,2669.9,2669.6,0.37459]
[1727101122971,0.93623,2670.4,2669.4,3.2078]
[1727101123171,0.93623,2670.4,2669.5,0.37461]
[1727101123172,0.37457,2669.9,2669.5,0.37461]
[1727101123383,0.93627,2670.3,2669.4,3.2078]
[1727101123576,0.93627,2670.3,2669.4,3.58242]
[1727101123779,0.93637,2670.0,2669.4,3.2078]
[1727101123974,0.37462,2669.5,2669.4,3.2078]
[1727101124180,0.37461,2669.6,2669.4,3.2078]
[1727101124773,0.37462,2669.5,2669.4,3.2078]
[1727101124977,0.93641,2669.9,2669.4,3.2078]
[1727101124978,0.37461,2669.6,2669.4,3.2078]
[1727101125174,0.37459,2669.8,2669.4,3.2078]
[1727101125399,2.97556,2670.7,2669.4,3.2078]
[1727101125400,0.3746,2669.6,2669.4,3.2078]
[1727101125773,0.37461,2669.6,2669.4,3.2078]
[1727101125975,0.37462,2669.5,2669.4,3.2078]
[1727101126173,0.93643,2669.9,2669.4,3.2078]
[1727101126575,0.37461,2669.6,2669.4,3.2078]
[1727101126977,4.14413,2670.2,2669.4,3.2078]
[1727101126978,3.2078,2670.2,2669.4,3.2078]
[1727101127183,3.2078,2671.1,2670.1,3.2078]
[1727101127385,0.93602,2671.0,2670.1,3.2078]
[1727101127581,3.2078,2671.1,2670.2,0.37451]
[1727101127778,3.2078,2670.6,2670.0,3.2078]
[1727101128086,2.80798,2671.1,2669.4,3.78042262]
[1727101128087,0.37448,2670.5,2670.1,0.37452]
[1727101128281,3.2078,2671.1,2670.5,0.37447]
[1727101128282,0.37443,2670.9,2670.5,0.37447]
[1727101128485,0.37443,2670.9,2670.5,3.58227]
[1727101128670,3.2078,2671.1,2670.5,3.2078]
[1727101128877,2.1505,2671.3,2670.5,3.2078]
[1727101129287,10.4147,2672.4,2670.8,3.2078]
[1727101129288,0.93578,2671.7,2670.8,3.2078]
[1727101129585,3.2078,2671.9,2670.8,3.2078]
[1727101129788,0.37439,2671.1,2670.5,3.2078]
[1727101130088,0.37439,2671.1,2670.6,0.37445]
[1727101130282,4.14362,2671.6,2670.5,3.2078]
[1727101130476,0.37436,2671.4,2670.8,3.2078]
[1727101130683,0.37432,2671.7,2671.1,3.2078]
[1727101130881,0.93563,2672.2,2671.1,3.2078]
[1727101130882,0.3743,2671.8,2671.1,3.2078]
[1727101131187,3.2078,2672.0,2671.1,3.2078]
[1727101131384,3.2078,2672.3,2671.7,3.2078]
[1727101131581,3.2078,2672.5,2671.8,2.83]
[1727101131783,1.108,2672.8,2672.0,3.2078]
[1727101131984,1.108,2672.8,2671.9,3.2078]
[1727101131985,0.37424,2672.2,2671.9,3.2078]
[1727101132588,0.93543,2672.7,2671.9,3.2078]
[1727101132784,0.3742,2672.5,2671.9,3.2078]
[1727101133089,4.3158,2672.8,2672.2,3.2078]
[1727101133285,0.37421,2672.4,2672.2,3.2078]
[1727101133485,5.25119,2672.8,2671.9,3.2078]
[1727101133486,0.37426,2672.1,2671.9,3.2078]
[1727101133784,0.93532,2673.0,2671.9,6.0378]
[1727101133983,0.37418,2672.7,2672.3,0.37422]
[1727101134179,3.2078,2673.1,2672.5,3.2078]
[1727101134381,4.1431,2673.1,2672.5,3.2078]
[1727101134582,0.93536,2672.9,2672.2,3.2078]
[1727101134879,0.93547,2672.6,2671.9,3.2078]
[1727101135093,0.37423,2672.3,2671.9,0.37427]
[1727101135386,0.93564,2672.1,2671.5,3.2078]
[1727101135585,0.9356,2672.2,2671.2,3.2078]
[1727101135987,0.9356,2672.2,2671.2,0.37437]
[1727101135988,0.93572,2671.9,2671.2,0.37437]
[1727101136186,3.2078,2672.3,2671.1,3.2078]
[1727101136187,0.37434,2671.5,2671.1,3.2078]
[1727101136491,3.2078,2672.3,2671.4,3.2078]
[1727101136492,4.14337,2672.3,2671.4,3.2078]
[1727101136994,0.37433,2671.6,2671.4,3.2078]
[1727101137195,0.37433,2671.6,2671.2,0.37437]
[1727101137391,3.2078,2672.3,2671.1,3.2078]
[1727101137392,0.93561,2672.2,2671.1,6.951]
[1727101137595,0.37432,2671.6,2671.5,3.2078]
[1727101137894,0.37431,2671.7,2671.5,3.2078]
[1727101138105,0.37432,2671.6,2671.5,3.2078]
[1727101138496,0.37432,2671.6,2671.5,3.2178]
[1727101138989,3.2078,2672.3,2671.5,3.2178]
[1727101139193,4.14338,2672.3,2671.5,3.2178]
[1727101139390,0.37432,2671.6,2671.5,3.2178]
[1727101139696,0.37432,2671.6,2671.5,0.01]
[1727101140193,0.37432,2671.6,2671.5,6.961]
[1727101140393,4.14343,2672.2,2671.5,13.33533]
[1727101140593,0.37432,2671.6,2671.5,3.2178]
[1727101140808,3.2078,2672.2,2671.5,3.2178]
[1727101140809,0.3743,2671.8,2671.5,3.2178]
[1727101140991,3.2078,2672.2,2671.5,3.2178]
[1727101140992,0.37432,2671.6,2671.5,3.2178]
[1727101141194,0.37432,2671.6,2671.5,0.01]
[1727101141404,9.7432,2671.6,2670.3,3.2078]
[1727101141696,0.93589,2671.4,2670.5,3.58227]
[1727101141896,0.93595,2671.2,2670.5,3.2078]
[1727101142192,1.0425,2671.5,2670.9,3.2078]
[1727101142193,0.37441,2671.0,2670.9,3.2078]
[1727101142784,0.93588,2671.4,2670.9,6.9518]
[1727101142990,1.0425,2671.5,2670.9,3.2078]
[1727101143192,3.2078,2671.9,2671.2,3.2078]
[1727101143193,0.93578,2671.7,2671.2,3.2078]
[1727101143393,0.37436,2671.3,2671.2,3.2078]
[1727101143695,0.93578,2671.7,2670.9,3.2078]
[1727101143896,3.2078,2671.4,2670.9,3.2078]
[1727101144200,1.055,2671.7,2670.9,3.2078]
[1727101144201,0.37441,2671.0,2670.9,3.2078]
[1727101144502,1.99079,2671.7,2671.0,0.3744]
[1727101144700,0.37437,2671.3,2671.0,0.3744]
[1727101144997,1.9908,2671.7,2670.9,3.2078]
[1727101145296,1.42932,2671.7,2671.3,0.37436]
[1727101145495,1.055,2671.7,2671.2,3.2078]
[1727101145894,0.37433,2671.6,2671.2,3.58218]
[1727101146090,1.055,2671.7,2671.2,3.2078]
[1727101146291,1.055,2671.7,2671.2,3.58218]
[1727101146597,0.37436,2671.3,2671.2,3.2078]
[1727101146900,1.055,2671.7,2671.2,3.2078]
[1727101147099,1.055,2671.7,2671.3,0.37436]
[1727101147401,3.2078,2672.2,2671.9,0.37427]
[1727101147697,3.2078,2672.2,2671.5,3.2078]
[1727101147902,3.2078,2672.2,2671.9,0.37427]
[1727101148093,0.37426,2672.1,2671.6,0.37431]
[1727101148296,3.58205,2672.2,2671.8,0.37429]
[1727101148593,3.2078,2672.2,2671.5,3.2078]
[1727101148797,3.2078,2672.2,2672.1,0.37425]
[1727101148993,1.91787,2672.9,2671.9,3.2078]
[1727101148994,0.37423,2672.3,2671.9,3.2078]
[1727101149193,4.1903,2672.9,2671.9,3.2078]
[1727101149395,0.37416,2672.8,2672.4,0.3742]
[1727101149609,0.37417,2672.7,2672.3,0.37421]
[1727101149799,1.91789,2672.9,2672.2,3.58203]
[1727101149989,0.93539,2672.8,2672.2,3.2078]
[1727101150200,0.93543,2672.7,2672.2,3.2078]
[1727101150390,0.9825,2672.9,2672.2,3.2078]
[1727101150595,0.3743,2671.8,2671.4,3.2078]
[1727101150790,0.93557,2672.3,2671.6,0.37431]
[1727101151003,0.37426,2672.1,2671.7,0.37431]
[1727101151299,3.2078,2672.7,2672.0,3.2078]
[1727101151689,0.37418,2672.7,2672.0,3.2078]
[1727101151888,1.91788,2672.9,2672.0,3.2078]
[1727101152094,0.3742,2672.5,2672.1,0.37424]
[1727101152294,0.93539,2672.8,2672.2,0.37424]
[1727101152295,0.37419,2672.6,2672.2,0.37424]
[1727101152591,0.93546,2672.6,2671.9,3.58207]
[1727101152792,4.1903,2672.9,2671.9,3.58207]
[1727101152793,4.1903,2672.9,2671.9,3.2078]
[1727101153192,0.37427,2672.0,2671.9,3.2078]
[1727101153798,3.2078,2672.8,2671.9,7.32448]
[1727101153799,0.37423,2672.3,2671.9,7.32448]
[1727101153998,0.37418,2672.7,2671.9,3.2078]
[1727101154198,1.91789,2672.9,2671.9,3.58207]
[1727101154399,1.91789,2672.9,2672.0,0.37426]
[1727101154400,0.37422,2672.4,2672.0,0.37426]
[1727101154601,0.93539,2672.8,2671.9,3.2078]
[1727101154789,0.3742,2672.5,2672.1,0.37425]
[1727101154996,0.9825,2672.9,2672.2,3.2078]
[1727101155195,4.1903,2672.9,2671.9,3.2078]
[1727101155503,0.93544,2672.7,2671.9,3.2078]
[1727101155694,1.91788,2672.9,2672.2,3.2078]
[1727101155899,0.37416,2672.8,2672.4,0.3742]
[1727101156198,0.37416,2672.8,2672.2,3.2078]
[1727101156401,0.9825,2672.9,2672.2,3.58203]
[1727101156402,1.91787,2672.9,2672.2,3.58203]
[1727101156591,0.9825,2672.9,2672.3,3.2078]
[1727101156996,0.9825,2672.9,2671.7,3.76576]
[1727101156997,0.93543,2672.7,2671.7,3.2078]
[1727101157403,0.37424,2672.2,2671.9,0.37428]
[1727101157706,4.1903,2672.9,2671.7,3.2078]
[1727101157707,0.37427,2672.0,2671.7,3.2078]
[1727101158004,0.9825,2672.9,2671.7,3.2078]
[1727101158005,0.93554,2672.4,2671.7,3.2078]
[1727101158305,0.37423,2672.3,2671.9,0.37428]
[1727101158500,0.9825,2672.9,2672.0,3.2078]
[1727101158800,0.9825,2672.9,2672.3,3.2078]
[1727101158801,1.91787,2672.9,2672.3,3.2078]
[1727101158994,0.9825,2672.9,2672.3,3.2078]
[1727101159195,0.9825,2672.9,2672.0,3.2078]
[1727101159398,0.9825,2672.9,2672.8,0.37415]
[1727101159596,5.15553,2673.6,2672.8,6.0]
[1727101159597,1.0545,2673.6,2672.8,6.0]
[1727101159801,0.37402,2673.8,2673.3,0.37408]
[1727101160001,1.0735,2674.0,2673.2,3.2078]
[1727101160002,0.37406,2673.5,2673.2,3.2078]
[1727101160195,1.0735,2674.0,2673.2,3.2078]
[1727101160396,1.0735,2674.0,2673.2,3.5819]
[1727101160595,0.37404,2673.7,2673.2,3.2078]
[1727101160797,3.2078,2674.4,2673.2,3.2078]
[1727101160798,3.2078,2674.6,2673.3,2.83]
[1727101161009,3.2078,2674.6,2673.9,3.2078]
[1727101161201,3.2078,2674.9,2674.2,3.2078]
[1727101161505,0.37399,2674.0,2673.9,3.2078]
[1727101161698,0.37402,2673.8,2673.7,3.2078]
[1727101161899,0.37406,2673.5,2673.4,3.2078]
[1727101162098,4.193,2673.7,2672.8,3.2078]
[1727101162400,0.3741,2673.2,2672.9,3.2078]
[1727101162600,0.37413,2673.0,2672.9,3.2078]
[1727101162799,0.37419,2672.6,2672.4,3.2078]
[1727101163101,0.93539,2672.8,2672.1,3.2078]
[1727101163300,0.37419,2672.6,2672.1,3.2078]
[1727101163500,0.93532,2673.0,2672.1,3.2078]
[1727101163704,0.37426,2672.1,2671.7,3.2078]
[1727101163915,3.2078,2672.7,2671.7,3.2078]
[1727101163916,0.93546,2672.6,2671.7,3.2078]
[1727101164125,0.37434,2671.5,2670.8,0.56038892]
[1727101164306,3.2078,2672.0,2670.8,3.39376892]
[1727101164610,3.2078,2672.0,2671.0,3.2078]
[1727101164611,0.37434,2671.5,2671.0,3.2078]
[1727101164802,0.9852,2671.7,2671.0,3.2078]
[1727101165202,0.37439,2671.1,2671.0,3.2078]
[1727101165403,0.37443,2670.9,2670.1,0.37453]
[1727101165602,0.37444,2670.8,2670.1,0.37452]
[1727101165807,0.37445,2670.7,2670.3,3.2078]
[1727101166001,0.93595,2671.2,2670.3,3.2078]
[1727101166201,0.93607,2670.9,2670.3,3.2078]
[1727101166396,3.2078,2671.1,2670.0,3.2078]
[1727101166397,0.37452,2670.2,2670.0,3.2078]
[1727101166606,0.37451,2670.3,2670.0,3.2078]
[1727101167006,0.37449,2670.4,2670.0,3.2078]
[1727101167199,1.85535,2671.0,2670.0,3.2078]
[1727101167398,0.93606,2670.9,2670.0,3.2078]
[1727101167615,0.93609,2670.8,2670.0,3.2078]
[1727101167810,4.1271,2671.0,2670.0,3.2078]
[1727101168006,0.37449,2670.5,2670.0,3.2078]
[1727101168313,0.9361,2670.8,2670.0,3.2078]
[1727101168613,0.3745,2670.4,2670.0,3.2078]
[1727101168807,0.37453,2670.2,2670.0,3.2078]
[1727101169311,0.37458,2669.8,2669.7,3.2078]
[1727101169512,0.37457,2669.9,2669.3,3.2078]
[1727101169807,0.37456,2669.9,2669.6,3.2078]
[1727101170118,0.3746,2669.6,2669.2,3.2078]
[1727101170305,0.37455,2670.0,2669.2,3.2078]
[1727101170613,0.37458,2669.8,2669.5,3.2078]
[1727101170816,3.2078,2670.4,2669.5,3.2078]
[1727101170817,0.37456,2669.9,2669.5,3.2078]
[1727101171119,0.37458,2669.8,2669.5,3.2078]
[1727101171306,0.3746,2669.6,2669.5,3.2078]
[1727101172210,0.9552,2670.6,2669.2,3.2078]
[1727101172211,0.37462,2669.5,2669.2,3.2078]
[1727101172602,0.37457,2669.9,2669.3,3.7464]
[1727101172802,0.37457,2669.9,2669.5,3.2078]
[1727101173007,0.9363,2670.2,2669.5,3.2078]
[1727101173206,0.37457,2669.9,2669.5,3.2078]
[1727101173409,0.93634,2670.1,2669.2,3.2078]
[1727101173613,0.93637,2670.0,2669.2,3.2078]
[1727101173801,6.9534,2670.1,2669.2,3.2078]
[1727101174001,6.9534,2670.1,2668.1,0.95042262]
[1727101174002,0.37467,2669.1,2669.0,3.2078]
[1727101174209,0.93655,2669.5,2668.5,3.2078]
[1727101174210,3.2078,2669.5,2668.5,3.2078]
[1727101174505,0.37467,2669.2,2668.6,0.37474]
[1727101174711,0.37465,2669.3,2668.8,3.2078]
[1727101175020,0.37463,2669.4,2669.1,3.2078]
[1727101175205,0.37463,2669.4,2668.9,0.37469]
[1727101175408,0.37464,2669.4,2668.8,0.37471]
[1727101175607,0.37465,2669.3,2668.7,3.58252]
[1727101175907,0.37466,2669.2,2668.7,3.2078]
[1727101176212,0.37466,2669.2,2669.0,3.2078]
[1727101176415,0.37467,2669.1,2669.0,3.2078]
[1727101176803,4.14436,2669.5,2669.0,3.2078]